Cogmind - Beta 12 *** ADVENTURER MODE // 2024.01.08 @ 19:46:16 Player: martinuzz Result: Destroyed by 8R-AWN with 8R-AWN's Boregun Performance ------------- Evolutions (1) 500 Regions Visited (5) 1000 Robots Destroyed (82) 410 Value Destroyed (2148) 2148 Prototype IDs (10) 200 Alien Tech Used (0) 0 Bonus (373) 373 TOTAL SCORE: 4631 Bonus ------- High Alert Combat Kills 52 Follower Combat Kills 46 Aligned with FarCom 300 Friendly Fire -25 Cogmind --------- Core Integrity 0/400 Matter 162/300 Energy 100/100 System Corruption 1% Temperature Cool (0) Movement Core (700) Ox13 Location -9/Exiles Parts ------- > --- POWER (1) -------- (None) > --- PROPULSION (3) --- (None) > --- UTILITY (3) ------ High-capacity Storage Unit Signal Interpreter > --- WEAPON (2) ------- Flail > --- INVENTORY (20) --- High-capacity Matter Pod (200) Improved Terrain Scanner Recalibrator Field Recycling Unit (0) Army-in-a-Box Peak State ------------ > --- POWER ------------ Light Nuclear Core > --- PROPULSION ------- Improved Treads Armored Treads Armored Treads > --- UTILITY ---------- High-capacity Storage Unit Experimental Sensor Array Signal Interpreter > --- WEAPON ----------- Improved Medium Laser Assault Cannon > --- INVENTORY -------- Improved Ion Engine Light Treads Improved Treads Improved Treads Improved Treads Thermal Generator Improved Heat Sink High-capacity Matter Pod Improved Terrain Scanner Recalibrator Field Recycling Unit Army-in-a-Box Pulse Rifle Improved Assault Rifle Flail [Rating: 36] Favorites ----------- Power Light Ion Engine Engine Light Ion Engine Power Core Light Nuclear Core Propulsion Improved Treads Treads Improved Treads Utility Signal Interpreter Device Improved Terrain Scanner Storage Large Storage Unit Processor Signal Interpreter Weapon Improved Light Cannon Energy Gun Improved Medium Laser Energy Cannon Beam Cannon Ballistic Gun Assault Rifle Ballistic Cannon Improved Light Cannon Impact Weapon Flail Build | -11 -10 -10 -9 -9 -9 ------- Run | Jun Mat Min Mat Min Exi Slots Evolved 2 | . . . 2 . . Power . | . . . . . . Propulsion 1 | . . . 1 . . Utility 1 | . . . 1 . . Weapon . | . . . . . . Parts Attached 53 | 7 7 3 24 1 11 Power 9 | 1 1 1 4 1 1 Engine 8 | 1 1 1 4 . 1 Core 1 | . . . . 1 . Reactor . | . . . . . . Propulsion 12 | 2 2 . 4 . 4 Treads 12 | 2 2 . 4 . 4 Leg . | . . . . . . Wheel . | . . . . . . Hover . | . . . . . . Flight . | . . . . . . Utility 18 | 2 2 . 11 . 3 Device 14 | 1 . . 10 . 3 Storage 3 | 1 1 . 1 . . Processor 1 | . 1 . . . . Hackware . | . . . . . . Protection . | . . . . . . Artifact . | . . . . . . Weapon 14 | 2 2 2 5 . 3 Energy Gun 3 | 1 . . 1 . 1 Energy Cannon 2 | . 1 1 . . . Ballistic Gun 3 | 1 . . 1 . 1 Ballistic Cannon 5 | . 1 1 3 . . Launcher . | . . . . . . Special Weapon . | . . . . . . Impact Weapon 1 | . . . . . 1 Slashing Weapon . | . . . . . . Piercing Weapon . | . . . . . . Special Melee Weapon . | . . . . . . Unidentified Prototypes 3 | . . . 2 . 1 Parts Lost 18 | . . . 2 . 16 Power 3 | . . . 1 . 2 Propulsion 7 | . . . . . 7 Utility 3 | . . . . . 3 Weapon 5 | . . . 1 . 4 Highest Loss Streak 16 | . . . 1 . 16 To Critical Strikes 6 | . . . . . 6 Average Slot Usage (%) 99 | . 100 100 99 100 92 Engine 10 | . 14 14 10 . . Core 1 | . . . . 10 8 Treads 30 | . 28 28 32 33 28 Device 8 | . 10 . 10 11 11 Storage 12 | . 14 14 11 11 11 Processor 10 | . 3 14 11 11 11 Energy Gun 5 | . 5 . 8 11 9 Energy Cannon 6 | . 8 14 2 . . Ballistic Cannon 11 | . 10 14 10 11 9 Naked Turns . | . . . . . . Heaviest Build 60 | 14 31 30 56 56 60 Greatest Support 69 | 40 46 46 69 63 69 Greatest Overweight (x) 19 | . . . . . 19 Average Overweight (x) . | . . . . . . Largest Inventory Capacity 20 | 8 15 15 20 20 20 Average Capacity 16 | 7 14 15 16 20 20 Most Carried 20 | 5 15 15 17 19 20 Average Carried 14 | 1 11 14 14 17 18 Final Capacity 20 | 8 15 15 20 20 20 Final Carried 19 | 2 15 15 17 19 10 Class Distribution -------------------- 100% | Mutant Dominant Class ---------------- Mutant | -10/Materials Mutant | -10/Mines Mutant | -9/Materials Mutant | -9/Mines Mutant | -9/Exiles Resources | -11 -10 -10 -9 -9 -9 ----------- Run | Jun Mat Min Mat Min Exi Matter Collected 1599 | 282 435 119 713 50 . Remotely . | . . . . . . Salvage Created 2690 | 130 621 152 1602 167 18 Parts 160 | 8 36 12 91 13 . Haulers Intercepted 7 | . 2 . 5 . . Recyclers Shooed 3 | 1 1 . 1 . . Parts Field Recycled . | . . . . . . Retrieved Matter . | . . . . . . Parts Self-Destructed . | . . . . . . Prevented . | . . . . . . Kills | -11 -10 -10 -9 -9 -9 ------- Run | Jun Mat Min Mat Min Exi Combat Hostiles Destroyed 57 | . 10 6 33 5 3 Guns 17 | . 7 . 8 2 . Cannons 40 | . 3 6 25 3 3 Classes Destroyed 13 | 2 6 . 3 1 1 Worker 3 | . 2 . 1 . . Tunneler 3 | 2 . . 1 . . Hauler 7 | . 2 . 5 . . Recycler 3 | 1 1 . 1 . . Mechanic 3 | . 1 . 2 . . Operator 1 | . . . 1 . . Watcher 8 | . 3 . 5 . . Swarmer 9 | . 3 2 4 . . Grunt 33 | . 7 4 18 4 . Brawler 1 | . . . 1 . . Duelist 1 | . . . . 1 . Sentry 10 | . . . 10 . . Assembled 3 | . . . . . 3 Best Kill Streak 5 | 2 3 2 5 3 3 Combat Bots Only 4 | . 3 2 4 3 3 Max Kills in Single Turn 2 | 1 2 1 2 1 1 Gunslinging . | . . . . . . Exploded . | . . . . . . Melee . | . . . . . . Uniques/NPCs Destroyed . | . . . . . . Combat | -11 -10 -10 -9 -9 -9 -------- Run | Jun Mat Min Mat Min Exi Damage Taken 3177 | . 347 108 990 98 1634 Core 463 | . 55 . 80 8 320 Absorbed by Shields . | . . . . . . Regen/Repaired (Parts) 14 | . . . 14 . . Core Remaining (%) 89 | 100 . 78 . . . Volleys Fired 202 | 4 59 16 106 8 9 Largest 2 | 2 2 2 2 2 2 Hottest 100 | 60 99 99 100 100 100 Shots Fired 400 | 8 116 32 210 16 18 Gun 182 | 8 93 . 61 8 12 Cannon 218 | . 23 32 149 8 6 Launcher . | . . . . . . Special . | . . . . . . Kinetic 199 | 4 59 16 104 8 8 Thermal 201 | 4 57 16 106 8 10 Explosive . | . . . . . . Electromagnetic . | . . . . . . Robot Hit Streak 30 | 6 14 15 30 19 13 Robot Miss Streak 5 | . 4 5 2 . 1 Penetration Max . | . . . . . . Secondary Targets 1 | . 1 . . . . Max Gunslinging Chain 1 | . 1 . . . . Shots Hit Robots 296 | 6 81 22 157 14 16 Core Hits 113 | 4 30 8 58 7 6 Critical Kills 1 | . 1 . . . . Critical Parts Destroyed . | . . . . . . Critical Strikes 11 | . 2 . 9 . . Burn 7 | . . . 7 . . Destroy 1 | . 1 . . . . Blast 3 | . 1 . 2 . . Melee Attacks 1 | . . . . . 1 Impact 1 | . . . . . 1 Slashing . | . . . . . . Piercing . | . . . . . . Sneak Attacks . | . . . . . . Combat Hostiles . | . . . . . . Follow-up Attacks . | . . . . . . Damage Inflicted 5477 | 72 1091 450 3252 289 323 Guns 2000 | 72 785 . 870 135 138 Cannons 3367 | . 306 450 2318 154 139 Explosions 39 | . . . 39 . . Melee 46 | . . . . . 46 Ramming 25 | . . . 25 . . Kinetic 2778 | 25 534 238 1671 154 156 Thermal 2628 | 47 557 212 1556 135 121 Explosive . | . . . . . . Electromagnetic . | . . . . . . Impact 46 | . . . . . 46 Slashing . | . . . . . . Piercing . | . . . . . . Highest Corruption 1 | . . . 1 1 1 Average Corruption 1 | . . . 1 1 1 Corruption Purged . | . . . . . . Corruption Blocked . | . . . . . . Effects 18 | . . . 9 6 3 Message Errors 3 | . . . 2 1 . Matter Fused 3 | . . . 2 . 1 Heat Flow Errors 3 | . . . 1 2 . Energy Discharges 3 | . . . 1 2 . Data Loss (minor) 2 | . . . 1 . 1 Misfires 2 | . . . 1 . 1 Alerts 1 | . . . . 1 . Weapon Failures 1 | . . . 1 . . Overload Shots . | . . . . . . Overflow Damage 37 | . . . 37 . . Projectiles 37 | . . . 37 . . Explosions . | . . . . . . Melee . | . . . . . . Knockbacks 15 | . 3 2 5 2 3 Impact 1 | . . . . . 1 Kinetic 14 | . 3 2 5 2 2 Secondary . | . . . . . . Self-Inflicted Damage 73 | . . . 73 . . Shots 1 | . . . 1 . . Rammed 1 | . . . 1 . . Targets Rammed 1 | . . . 1 . . Kicked . | . . . . . . Crushed . | . . . . . . Highest Temperature 613 | . 168 285 297 195 613 Average Temperature 91 | . 43 91 72 83 325 Received Heat Transfer 2170 | . 201 51 525 33 1360 Effects 10 | . . . . . 10 Shutdowns 1 | . . . . . 1 Energy Bleed 2 | . . . . . 2 Interference 1 | . . . . . 1 Matter Decay 2 | . . . . . 2 Short Circuit 3 | . . . . . 3 Damage (minor) 1 | . . . . . 1 Siege Activations . | . . . . . . Robots Corrupted . | . . . . . . Combat Hostiles . | . . . . . . Parts Fried . | . . . . . . Impact Corruptions . | . . . . . . Robots Melted . | . . . . . . Combat Hostiles . | . . . . . . Parts Melted 6 | . 3 . 3 . . Heat Transferred 6165 | 100 1233 444 3824 296 268 Parts Sabotaged . | . . . . . . Parts Stolen . | . . . . . . Parts Stripped . | . . . . . . Power Chain Reactions . | . . . . . . Missiles Intercepted . | . . . . . . Alert | -11 -10 -10 -9 -9 -9 ------- Run | Jun Mat Min Mat Min Exi Peak Influence 528 | 15 310 114 528 170 . Initial 49 | . 8 . . 49 . Average 129 | 6 72 17 258 77 . Maximum Alert Level 2 | . 1 . 2 . . Low Security (%) 72 | 100 93 100 32 100 . Level 1 21 | . 6 . 52 . . Level 2 5 | . . . 14 . . Level 3 . | . . . . . . Level 4 . | . . . . . . Level 5 . | . . . . . . High Security . | . . . . . . Max Security . | . . . . . . Squads Dispatched 7 | . 2 . 5 . . Investigation 6 | . 2 . 4 . . Extermination . | . . . . . . Reinforcement 1 | . . . 1 . . Assault . | . . . . . . Garrison . | . . . . . . Intercept . | . . . . . . Searches Triggered . | . . . . . . Construction Impeded . | . . . . . . Haulers Reinforced . | . . . . . . Active Scanning Responses . | . . . . . . Cargo Convoy Interrupts . | . . . . . . Stealth | -11 -10 -10 -9 -9 -9 --------- Run | Jun Mat Min Mat Min Exi Distress Signals 3 | . 1 1 1 . . Communications Jammed . | . . . . . . Distress Signals . | . . . . . . Times Spotted 91 | . 22 10 46 5 8 Peak Tracking Total 9 | . 5 3 6 3 9 Tactical Retreats 6 | . 2 . 4 . . Traps | -11 -10 -10 -9 -9 -9 ------- Run | Jun Mat Min Mat Min Exi Traps Triggered 5 | . 3 . 2 . . Indirectly . | . . . . . . Trap Hack Attempts . | . . . . . . Triggered . | . . . . . . Disarmed 6 | . . . 6 . . Reprogrammed . | . . . . . . Reused . | . . . . . . Traps Extracted . | . . . . . . Installed . | . . . . . . Triggered . | . . . . . . Machines | -11 -10 -10 -9 -9 -9 ---------- Run | Jun Mat Min Mat Min Exi Machines Disabled 8 | . 1 1 4 . 2 Max in Single Turn 2 | . 1 1 2 . 1 Machines Repaired . | . . . . . . Machines Sabotaged . | . . . . . . Overloaded Fab Kills . | . . . . . . Hacking | -11 -10 -10 -9 -9 -9 --------- Run | Jun Mat Min Mat Min Exi Machines Accessed 25 | . 8 1 16 . . Terminals 19 | . 7 1 11 . . Fabricators . | . . . . . . Repair Stations 2 | . 1 . 1 . . Recycling Units 2 | . . . 2 . . Scanalyzers 2 | . . . 2 . . Garrison Access . | . . . . . . Total Hacks 73 | . 20 2 51 . . Successful 47 | . 10 2 35 . . Failed 26 | . 10 . 16 . . Catastrophic 2 | . . . 2 . . Database Lockouts . | . . . . . . Manual 1 | . . . . . 1 Terminals 53 | . 19 2 32 . . Fabricators . | . . . . . . Repair Stations 4 | . 1 . 3 . . Recycling Units 4 | . . . 4 . . Scanalyzers 12 | . . . 12 . . Garrison Access . | . . . . . . Terminal Hacks 32 | . 10 2 20 . . Record 10 | . 3 2 5 . . Robot Analysis 3 | . 1 . 2 . . Prototype ID Bank 4 | . 1 . 3 . . Terminal Index 1 | . . . 1 . . Recycling Unit Index 1 | . . . 1 . . Alert Level 2 | . 2 . . . . Locate Traps 4 | . 2 . 2 . . Disarm Traps 1 | . . . 1 . . Dispatch Records 3 | . 1 . 2 . . Assault Status 1 | . . . 1 . . Registered Components 1 | . . . 1 . . Zone Layout 1 | . . . 1 . . Fabricator Hacks . | . . . . . . Repair Station Hacks 2 | . . . 2 . . Scan Component 1 | . . . 1 . . Repair 1 | . . . 1 . . Recycling Unit Hacks 1 | . . . 1 . . Retrieve Components 1 | . . . 1 . . Scanalyzer 12 | . . . 12 . . Insert Component 6 | . . . 6 . . Analyze 6 | . . . 6 . . Garrison Access Hacks . | . . . . . . Unauthorized Hacks . | . . . . . . Terminals . | . . . . . . Fabricators . | . . . . . . Repair Stations . | . . . . . . Recycling Units . | . . . . . . Scanalyzers . | . . . . . . Garrison Access . | . . . . . . Data Cores Recovered . | . . . . . . Used . | . . . . . . Hacking Detections 25 | . 8 1 16 . . Full Trace Events 3 | . . . 3 . . Feedback Events . | . . . . . . Feedback Blocked . | . . . . . . Robot Schematics Acquired . | . . . . . . Robots Built . | . . . . . . Authchips . | . . . . . . Time . | . . . . . . Total Robot Build Rating . | . . . . . . Part Schematics Acquired 6 | . . . 6 . . Parts Built . | . . . . . . Authchips . | . . . . . . Time . | . . . . . . Total Part Build Rating . | . . . . . . Parts Repaired 1 | . . . 1 . . Time 38 | . . . 38 . . Parts Recycled . | . . . . . . Recycled Matter . | . . . . . . Retrieved Matter . | . . . . . . Retrieved Components 3 | . . . 3 . . Parts Scanalyzed 6 | . . . 6 . . Part Schematics Acquired 6 | . . . 6 . . Parts Damaged . | . . . . . . Bothacking | -11 -10 -10 -9 -9 -9 ------------ Run | Jun Mat Min Mat Min Exi Used RIF Installer . | . . . . . . Robots Hacked . | . . . . . . Non-combat . | . . . . . . Combat . | . . . . . . Robot Hacks Applied . | . . . . . . Relay Couplers Released . | . . . . . . Fabnet Peak Effective % . | . . . . . . Robots Rewired . | . . . . . . Allies Hacked . | . . . . . . Hacks Repelled . | . . . . . . Allies | -11 -10 -10 -9 -9 -9 -------- Run | Jun Mat Min Mat Min Exi Total Allies 3 | . . 3 . . . Largest Group 3 | . . 3 1 . . Highest-Rated Group 73 | . . 73 11 . . Highest-Rated Ally 31 | . . 31 11 . . Total Orders . | . . . . . . Ally Attacks 18 | . . 18 . . . Total Damage 192 | . . 192 . . . Kills 4 | . . 4 . . . Allies Corrupted . | . . . . . . Allies Melted . | . . . . . . Intel | -11 -10 -10 -9 -9 -9 ------- Run | Jun Mat Min Mat Min Exi Robot Analysis Total 3 | . 1 . 2 . . Derelict Logs Recovered 3 | . . 1 . 2 . Drone Launches . | . . . . . . Drone Recoveries . | . . . . . . Exploration | -11 -10 -10 -9 -9 -9 ------------- Run | Jun Mat Min Mat Min Exi Turns Passed 7536 | 82 1756 1799 2730 732 437 Spaces Moved 3969 | 42 921 1057 1317 418 214 Core 17 | 11 . . . . 6 Treads 3952 | 31 921 1057 1317 418 208 Legs . | . . . . . . Wheels . | . . . . . . Hover . | . . . . . . Flight . | . . . . . . Fastest Speed 50 | 50 160 160 160 166 160 Average Speed 162 | 131 160 160 163 166 184 Slowest Speed 1000 | 160 160 160 166 166 1000 Overloaded Moves . | . . . . . . Propulsion Burnouts . | . . . . . . Robots Hopped . | . . . . . . Cave-ins Triggered . | . . . . . . Exploration Rate (%) 68 | 5 99 103 93 70 42 Regions Visited 5 Branch Regions 3 Pre-discovered Areas 3 | . . 1 . 2 . Known Exits Taken 4 | . 1 1 1 1 . Unknown Exits Taken 1 | 1 . . . . . Scrap Searched 4 | . . 2 . 2 . Spaces Dug . | . . . . . . Terrain Destroyed 28 | . 1 1 25 1 . Melee . | . . . . . . Projectile 9 | . 1 1 6 1 . AOE 19 | . . . 19 . . Terrain Rammed . | . . . . . . Walls Destroyed . | . . . . . . Machines Disabled . | . . . . . . Actions | -11 -10 -10 -9 -9 -9 --------- Run | Jun Mat Min Mat Min Exi Total 4644 | 61 1089 1134 1678 441 241 Wait 312 | . 70 49 184 9 . Move 3964 | 41 920 1056 1316 417 214 Hop . | . . . . . . Pick Up 69 | 9 23 5 27 4 1 Fast Attach . | . . . . . . Attach 22 | 7 . . 5 . 10 Detach . | . . . . . . Swap 31 | . 7 3 19 1 1 Drop 42 | . 10 5 20 2 5 Fire 202 | 4 59 16 106 8 9 Melee 1 | . . . . . 1 Ram . | . . . . . . Kick . | . . . . . . Crush 1 | . . . 1 . . Escape Stasis . | . . . . . . Rewire . | . . . . . . Trap . | . . . . . . Miscellaneous . | . . . . . . Route ------- -11/Junkyard -10/Materials (discovered 5 exits: *Mat x3 / *Min x2) -10/Mines (discovered 2 exits: *Mat x2) -9/Materials (discovered 4 exits: *Mat x2 / *Min x2) -9/Mines (discovered 4 exits: *Mat x2 / *Exi / *Zio) -9/Exiles (discovered 1 exit: *Min) History --------- Turn | Location | Event 8 | -11/Junkyard | Discovered new exit (range 15) 83 | -11/Junkyard | Entered Materials 247 | -10/Materials | Discovered new exit (range 15) 307 | -10/Materials | Build established: Mutant 476 | -10/Materials | Discovered new exit (range 16) 830 | -10/Materials | Discovered new exit (range 8) 1108 | -10/Materials | Discovered new exit (range 5) 1343 | -10/Materials | Discovered new exit (range 3) 1348 | -10/Materials | Identified exit to Mines 1420 | -10/Materials | Identified exit to Materials 1839 | -10/Materials | Entered Mines 1923 | -10/Mines | Learned location of Mines (-9) 1976 | -10/Mines | Assembled infested the area 1981 | -10/Mines | Assisted by a Guerilla fighting off Assembled 2011 | -10/Mines | Discovered exit to Materials (range 9) 2076 | -10/Mines | A weapon hastily lodged in a ceiling crevice suddenly fell to the ground 2101 | -10/Mines | Discovered exit to Materials (range 9) 2103 | -10/Mines | Received a Mining Laser from a helpful Derelict 3638 | -10/Mines | Entered Materials 3638 | -9/Materials | Accompanied by 1 ally 3638 | -9/Materials | Evolved 2 slots: Propulsion x1, Utility x1 3743 | -9/Materials | Repaired Imp. Terrain Scanner 4214 | -9/Materials | Discovered new exit (range 10) 4233 | -9/Materials | Identified exit to Materials 4632 | -9/Materials | Discovered new exit (range 4) 4637 | -9/Materials | Identified exit to Mines 4794 | -9/Materials | Discovered exit to Mines (range 8) 5392 | -9/Materials | Discovered exit to Materials (range 15) 6368 | -9/Materials | Entered Mines 6455 | -9/Mines | Discovered exit to Materials (range 4) 6567 | -9/Mines | Found a damaged Exp. Sensor Array with a note attached 6570 | -9/Mines | Found Prototype Device 6583 | -9/Mines | Discovered exit to Materials (range 10) 6641 | -9/Mines | A Derelict revealed a hidden shortcut to a safe place 6653 | -9/Mines | Identified exit to Zion 6838 | -9/Mines | Learned location of Zion (-7) 7094 | -9/Mines | Deemed a non-threat by the Exiles lab entrance 7094 | -9/Mines | Discovered new exit (range 5) 7099 | -9/Mines | Identified exit to Exiles 7100 | -9/Mines | Entered Exiles 7135 | -9/Exiles | Discovered new exit (range 15) 7155 | -9/Exiles | Identified exit to Mines 7198 | -9/Exiles | Met 8R-AWN 7222 | -9/Exiles | Met EX-HEX 7268 | -9/Exiles | Met EX-BIN 7288 | -9/Exiles | Aligned with FarCom system 7290 | -9/Exiles | Given EX-Vault access code 7293 | -9/Exiles | Identified Exp. Sensor Array 7329 | -9/Exiles | Opened EX-Vault 7345 | -9/Exiles | Found Prototype Device 7383 | -9/Exiles | Warned to stay clear of 0b10 Research branches 7438 | -9/Exiles | Attacked by the Exiles 7481 | -9/Exiles | Core integrity fell below 50% 7520 | -9/Exiles | Core integrity fell below 20% 7537 | -9/Exiles | Destroyed by 8R-AWN with 8R-AWN's Boregun Last Messages --------------- 07513_ Penetrated by HV Slug. 07513_ 8R-AWN knocked back. 07519_ HV Slug penetrates Wall. 07519_ Penetrated by HV Slug. 07519_ HV Slug penetrates as-42783. 07519_ as-42783 suffers critical hit (Destroy). 07519_ Machine disabled. 07523_ Penetrated by HV Slug. 07528_ HV Slug penetrates Machine. 07528_ Machine disabled. 07528_ Penetrated by HV Slug. 07532_ HV Slug penetrates Machine. 07532_ Machine disabled. 07532_ Penetrated by HV Slug. 07532_ HV Slug penetrates Wall. 07535_ Imp. Heat Sink destroyed. 07537_ HV Slug penetrates Machine. 07537_ HV Slug penetrates Wall. 07537_ Penetrated by HV Slug. [Achievement: Achiever] Map ----- +----------------------------------------------------+ | """#???????????????????????????????????????? | | """#???????????????????????????????????????? | | """""??????????????????????????????????????? | | """#???????????????????????????????????????? | | "X" """"???????????????????????????????????????? | | """ #???????????????????????????????????????? | | """""""""#???????????????????????????????????????? | | ##########???????????????????????????????????????? | | ?????????????????????????????????????????????????? | | ?????????????????????????????????????????????????? | | #????????????????????????????????????????????????? | | ##???###########?????????????????????????????????? | | #####"""""""""##????????????????????????????????? | | " """ """"##???????????????????????????????? | | "" " #???????????????????????????????# | | " """#???????????????????????????????# | | " "#???????????#####???????????????# | | " "##?????????##" #??????????????## | | ""###???????#" #?????????????## | | ""#??????##" ##????????????# | | "#????### ###????????### | | """ ##???# ########## | | #""" %% ##?## #""""## | | #"""" !!! %% ### * | | #" !!%!!%% g ## * | | """" !!! a @ #### | | ! "#?#"""""#### | | #" "##?#######??#### * | | a ######??????????????##### | | ##???????????????????????### | | " ##??????????????????????????# | | " "" "#???????????????????????????? | | "" " " ""#" "##???????????????????????????? | | ?##""" """##""""" "##????????????????????????????? | | ????#"""???#########?????????????????????????????? | | ?????????????????????????????????????????????????? | | ?????????????????????????????????????????????????? | | ?????????????????????????????????????????????????? | | ?????????????????????????????????????????????????? | | ?????????????????????????????????????????????????? | | ?????????????????????????????????????????????????? | | ?????????????????????????????????????????????????? | | ?????????????????????????????????????????????????? | | ?????????????????????????????????????????????????? | | ?????????????????????????????????????????????????? | | ?????????????????????????????????????????????????? | | ?????????????????????????????????????????????????? | | ?????????????????????????????????????????????????? | | ?????????????????????????????????????????????????? | | ?????????????????????????????????????????????????? | +----------------------------------------------------+ Best States ------------- Heat Dissipation 42 Energy Generation 14 Energy Capacity 265 Matter Stores 300 Matter Capacity 300 Sight Range 16 Robot Scan Range 20 Terrain Scan Range 16 Terrain Scan Density 10 Resistance: KI 20 Resistance: TH 20 Resistance: EX 20 Resistance: EM 20 Resistance: I 20 Resistance: S 20 Resistance: P 20 Evasion (%) 50 Recoil Reduction 3 Offensive Hacking 10 Authchip Count 1 Item Schematics ----------------- Imp. Treads | -9/Materials | Scanalyzed Recalibrator | -9/Materials | Scanalyzed Thermal Generator | -9/Materials | Scanalyzed Beamcaster | -9/Materials | Scanalyzed Enh. Flamer | -9/Materials | Scanalyzed Imp. Assault Rifle | -9/Materials | Scanalyzed Robot Schematics ------------------ None Fabricated ------------ Nothing Alien Tech Used ----------------- None Achievements -------------- Achiever Armchair Analyst Challenges ------------ None Game ------ Seed YASD Manual? 1 Play Time 01:16:26 Cumulative 31.8 hours Start 2024.01.08 @ 18:29:13 End 2024.01.08 @ 19:46:16 Sessions 1 Manual Loads 0 Difficulty Adventurer Special Mode None Game No. 17 Rogue 0 Adventurer 17 Explorer 0 Win Type - Total 0 Types 0/0/0/0/0/0/0/0/0 Lore% 23 Gallery% 25 Achievement% 25 Wizard Run 0 Options --------- ASCII 0 Keyboard 0 Movement Mouse Keybinds 0 Fullscreen 1 Font 18/TerminusBold Map View 76x50 Tactical HUD 1 Map Filters NONE Filters NONE Steam 1 RUN: 06bc6b26-f066-4942-b522-72a160a43946